Workbook

Sheet 2月份
A1: 陆 丰 市 2023 年 2 月 财 政 预 算 支 出 完 成 情 况 表
A2: 2023-02-28 | O2: 单位：万元
B3: 年 初 | C3: 年度预算计划 | F3: 累计 | G3: 占年 | H3: 上年 | I3: 比上年 | J3: 比上年 | K3: 本月 | L3: 上年 | M3: 比上年 | N3: 比上年
A4: 支 出 项 目 | B4: 预 算 | F4: 完成 | G4: 预算 | H4: 同期 | I4: 同期增 | J4: 同期增 | K4: 完成 | L4: 同月 | M4: 同月增 | N4: 同月增 | O4: 备 注
B5: 数 | C5: 上年结转 | D5: 上级补助 | E5: 本级安排 | F5: 数 | G5: % | H5: 完成 | I5: 减额 | J5: (减)% | K5: 数 | L5: 完成 | M5: 减额 | N5: (减)%
A6: 201、一般公共服务支出 | B6: =C6+D6+E6 -> 69,094 | E6: 69,094 | F6: 15,358 | G6: =F6/B6*100 -> 22.2 | H6: 19,753 | I6: =F6-H6 -> -4,395 | J6: =I6/H6*100 -> -22.2 | K6: 4,365 | L6: 2,469 | M6: =K6-L6 -> 1,896 | N6: =M6/L6*100 -> 76.8
A7: 203、国防支出 | B7: =C7+D7+E7 -> 0 | I7: 0 | M7: =K7-L7 -> 0
A8: 204、公共安全支出 | B8: 57,703 | E8: 57,703 | F8: 5,205 | G8: =F8/B8*100 -> 9.0 | H8: 6,505 | I8: -1,300 | J8: -20.0 | K8: 2,751 | L8: 1,560 | M8: =K8-L8 -> 1,191 | N8: =M8/L8*100 -> 76.3
A9: 205、教育支出 | B9: 223,608 | E9: 223,608 | F9: 37,661 | G9: 16.8 | H9: 25,583 | I9: 12,078 | J9: 47.2 | K9: 14,385 | L9: 4,765 | M9: 9,620 | N9: 201.9
A10: 206、科学技术支出 | B10: 1,988 | E10: 1,988 | F10: 269 | G10: 13.5 | H10: 108 | I10: 161 | J10: 149.1 | K10: 266 | L10: 3 | M10: 263 | N10: 8766.7
A11: 207、文化体育与传媒支出 | B11: 14,845 | E11: 14,845 | F11: 773 | G11: 5.2 | H11: 868 | I11: -95 | J11: -10.9 | K11: 565 | L11: 348 | M11: 217 | N11: 62.4
A12: 208、社会保障和就业支出 | B12: 182,612 | E12: 182,612 | F12: 53,614 | G12: 29.4 | H12: 49,847 | I12: 3,767 | J12: 7.6 | K12: 4,526 | L12: 42,270 | M12: -37,744 | N12: -89.3
A13: 210、卫生健康支出 | B13: 149,005 | E13: 149,005 | F13: 82,057 | G13: 55.1 | H13: 77,236 | I13: 4,821 | J13: 6.2 | K13: 4,584 | L13: 13,382 | M13: -8,798 | N13: -65.7
A14: 211、节能环保支出 | B14: 6,528 | E14: 6,528 | F14: 1,061 | G14: 16.3 | H14: 483 | I14: 578 | J14: 119.7 | K14: 525 | L14: 201 | M14: 324 | N14: 161.2
A15: 212、城乡社区支出 | B15: 31,384 | E15: 31,384 | F15: 2,971 | G15: 9.5 | H15: 5,672 | I15: -2,701 | J15: -47.6 | K15: 788 | L15: 2,335 | M15: -1,547 | N15: -66.3
A16: 213、农林水支出 | B16: 67,769 | E16: 67,769 | F16: 13,214 | G16: 19.5 | H16: 12,969 | I16: 245 | J16: 1.9 | K16: 4,282 | L16: 6,037 | M16: -1,755 | N16: -29.1
A17: 214、交通运输支出 | B17: 40,607 | E17: 40,607 | F17: 1,243 | G17: 3.1 | H17: 5,796 | I17: -4,553 | J17: -78.6 | K17: 623 | L17: 4,764 | M17: -4,141 | N17: -86.9
A18: 215、资源勘探工业信息等支出 | B18: 1,129 | E18: 1,129 | F18: 130 | G18: 11.5 | H18: 58 | I18: 72 | J18: 124.1 | K18: 28 | L18: 27 | M18: 1 | N18: 3.7
A19: 216、商业服务业等支出 | B19: 1,781 | E19: 1,781 | F19: 168 | G19: 9.4 | H19: 232 | I19: -64 | J19: -27.6 | K19: 62 | L19: 78 | M19: -16 | N19: -20.5
A20: 217、金融支出 | B20: 0 | I20: 0 | M20: 0
A21: 220、自然资源海洋气象等支出 | B21: 5,995 | E21: 5,995 | F21: 515 | G21: 8.6 | H21: 596 | I21: -81 | J21: =I21/H21*100 -> -13.6 | K21: 474 | L21: 256 | M21: 218 | N21: =M21/L21*100 -> 85.2
A22: 221、住房保障支出 | B22: 23,733 | E22: 23,733 | F22: 2,466 | G22: 10.4 | H22: 1,919 | I22: 547 | J22: =I22/H22*100 -> 28.5 | K22: 965 | L22: 946 | M22: 19 | N22: 2.0
A23: 222、粮油物资储备支出 | B23: 3,200 | E23: 3,200 | G23: 0.0 | I23: 0 | M23: 0
A24: 224、灾害防治及应急管理支出 | B24: 2,916 | E24: 2,916 | F24: 662 | G24: 22.7 | H24: 515 | I24: 147 | J24: =I24/H24*100 -> 28.5 | K24: 263 | L24: 165 | M24: 98 | N24: 59.4
A25: 232、债务付息支出 | B25: 3,900 | E25: 3,900 | G25: 0.0 | H25: 464 | I25: -464 | J25: =I25/H25*100 -> -100.0 | L25: 437 | M25: -437 | N25: -100.0
A26: 233、债务发行费用支出 | B26: 100 | E26: 100 | G26: 0.0 | I26: 0 | M26: 0
A27: 227、预备费 | B27: 2,000 | E27: 2,000 | G27: 0.0 | I27: 0 | M27: 0
A28: 229、其他支出 | B28: 39,284 | E28: 39,284 | F28: 189 | G28: 0.5 | H28: 557 | I28: -368 | J28: =I28/H28*100 -> -66.1 | K28: 3 | L28: 345 | M28: -342 | N28: -99.1
A29: 一、一般公共预算支出合计 | B29: =SUM(B6:B28) -> 929,181 | C29: =SUM(C6:C28) -> 0 | D29: =SUM(D6:D28) -> 0 | E29: =SUM(E6:E28) -> 929,181 | F29: =SUM(F6:F28) -> 217,556 | G29: 23.4 | H29: =SUM(H6:H28) -> 209,161 | I29: 8,395 | J29: 4.0 | K29: =SUM(K6:K28) -> 39,455 | L29: =SUM(L6:L28) -> 80,388 | M29: -40,933 | N29: -50.9
A30: 二、政府性基金预算支出 | B30: =C30+D30+E30 -> 413,861 | D30: 303,305.00 | E30: 110,556 | F30: 72,690 | G30: 17.6 | H30: 113,823 | I30: -41,133 | J30: -36.1 | K30: 9,822 | L30: 23,978 | M30: -14,156 | N30: -59.0
A31: 三、国有资本经营支出 | B31: =C31+D31+E31 -> 1,500 | E31: 1,500 | F31: 446 | G31: 29.7 | H31: 24 | I31: 422 | J31: 1758.3 | K31: 207 | L31: 23 | M31: 184 | N31: 800.0
A32: 四、债务还本支出 | B32: =C32+D32+E32 -> 7,600 | E32: 7,600 | G32: 0.0 | I32: 0
A33: 支出合计 | B33: =B29+B30+B31+B32 -> 1,352,142 | C33: =C29+C30+C31 -> 0 | D33: =D29+D30+D31 -> 303,305 | E33: =E29+E30+E31 -> 1,041,237 | F33: =F29+F30+F31+F32 -> 290,692 | G33: 21.5 | H33: =H29+H30+H31+H32 -> 323,008 | I33: -32,316 | J33: -10.0 | K33: =K29+K30+K31+K32 -> 49,484 | L33: =L29+L30+L31+L32 -> 104,389 | M33: =K33-L33 -> -54,905 | N33: =M33/L33*100 -> -52.6
